[Event "36th European Club Cup 2021"]
[Site "Struga"]
[Date "2021.09.23"]
[Round "6.38"]
[White "Godart, Francois"]
[Black "Christiansen, Johan-Sebastian"]
[Result "1/2-1/2"]
[ECO "E05"]
[WhiteElo "2407"]
[BlackElo "2609"]
[Annotator "ChessBase"]
[PlyCount "88"]
[EventDate "2021.09.18"]
[EventType "team-tourn"]
[EventCountry "MKD"]
[SourceTitle "playchess.com"]
[Source "ChessBase"]
[SourceQuality "1"]
[TimeControl "40/5400+30:1800+30"]

1. d4 {[%emt 0:00:07]} d5 {[%emt 0:00:38]} 2. c4 {[%emt 0:00:25]} e6 {[%emt 0:
03:47]} 3. g3 {[%emt 0:01:37]} Nf6 {[%emt 0:00:13]} 4. Bg2 {[%emt 0:00:10]} Be7
{[%emt 0:00:25]} 5. Nf3 {[%emt 0:00:12]} O-O {[%emt 0:00:10]} 6. O-O {[%emt 0:
00:05]} dxc4 {[%emt 0:01:57]} 7. Ne5 {[%emt 0:00:42]} Qd6 {[%emt 0:01:48]} 8.
Na3 {[%emt 0:07:41]} Qa6 {[%emt 0:02:47]} 9. Naxc4 {[%emt 0:02:39]} Rd8 {
[%emt 0:01:25]} 10. e3 {[%emt 0:10:25]} Nbd7 {[%emt 0:14:09]} 11. Qc2 {[%emt 0:
07:30]} Nxe5 {[%emt 0:31:25]} 12. Nxe5 {[%emt 0:01:56]} c6 {[%emt 0:04:39]} 13.
Bd2 {[%emt 0:03:58]} Nd5 {[%emt 0:17:03]} 14. Rfb1 {[%emt 0:07:36]} f6 {
[%emt 0:03:22]} 15. Nd3 {[%emt 0:02:00]} e5 {[%emt 0:01:13]} 16. dxe5 {[%emt 0:
20:07]} Nxe3 {[%emt 0:00:40]} 17. Bxe3 {[%emt 0:00:12]} Qxd3 {[%emt 0:00:05]}
18. Qxd3 {[%emt 0:00:45]} Rxd3 {[%emt 0:00:02]} 19. exf6 {[%emt 0:02:06]} Bxf6
{[%emt 0:00:23]} 20. Rd1 {[%emt 0:01:09]} Rxd1+ {[%emt 0:01:55]} 21. Rxd1 {
[%emt 0:00:03]} Be6 {[%emt 0:00:09]} 22. b4 {[%emt 0:07:14]} a5 {[%emt 0:01:51]
} 23. a3 {[%emt 0:06:18]} axb4 {[%emt 0:08:28]} 24. axb4 {[%emt 0:00:06]} Be7 {
[%emt 0:00:06]} 25. Bc5 {[%emt 0:07:06]} Bxc5 {[%emt 0:00:08]} 26. bxc5 {
[%emt 0:00:03]} Ra5 {[%emt 0:00:13]} 27. Rc1 {[%emt 0:00:20]} g5 {[%emt 0:02:
51]} 28. f4 {[%emt 0:01:17]} gxf4 {[%emt 0:00:05]} 29. gxf4 {[%emt 0:00:03]}
Ra4 {[%emt 0:01:31]} 30. Rb1 {[%emt 0:01:01]} Ra7 {[%emt 0:00:59]} 31. Kf2 {
[%emt 0:01:40]} Kg7 {[%emt 0:00:25]} 32. Ke3 {[%emt 0:01:12]} Kf6 {[%emt 0:00:
15]} 33. Be4 {[%emt 0:01:07]} Ra3+ {[%emt 0:00:32]} 34. Kd2 {[%emt 0:01:23]}
Bc8 {[%emt 0:00:40]} 35. Bxh7 {[%emt 0:00:20]} Rh3 {[%emt 0:00:12]} 36. Be4 {
[%emt 0:00:33]} Rxh2+ {[%emt 0:00:15]} 37. Ke3 {[%emt 0:00:25]} Rh3+ {[%emt 0:
00:41]} 38. Kd4 {[%emt 0:00:14]} Rh4 {[%emt 0:00:07]} 39. Ke3 {[%emt 0:00:48]}
Rh3+ {[%emt 0:00:05]} 40. Kd4 {[%emt 0:00:00]} Ra3 {[%emt 0:00:00]} 41. Rh1 {
[%emt 0:00:55]} Ra4+ {[%emt 0:08:13]} 42. Ke3 {[%emt 0:00:48]} Ra3+ {[%emt 0:
01:44]} 43. Kd4 {[%emt 0:00:14]} Ra4+ {[%emt 0:09:24]} 44. Ke3 {[%emt 0:00:10]}
Ra3+ {[%emt 0:05:08]} 1/2-1/2

[Event "36th European Club Cup 2021"]
[Site "Struga"]
[Date "2021.09.23"]
[Round "6.39"]
[White "Urkedal, Frode Olav Olsen"]
[Black "Dishman, Stephen"]
[Result "1-0"]
[ECO "D15"]
[WhiteElo "2568"]
[BlackElo "2316"]
[Annotator "ChessBase"]
[PlyCount "119"]
[EventDate "2021.09.18"]
[EventType "team-tourn"]
[EventCountry "MKD"]
[SourceTitle "playchess.com"]
[Source "ChessBase"]
[SourceQuality "1"]
[TimeControl "40/5400+30:1800+30"]

1. d4 {[%emt 0:00:29]} d5 {[%emt 0:00:06]} 2. c4 {[%emt 0:04:20]} c6 {[%emt 0:
00:09]} 3. Nf3 {[%emt 0:00:47]} Nf6 {[%emt 0:00:08]} 4. e3 {[%emt 0:00:03]} Bf5
{[%emt 0:00:09]} 5. Nc3 {[%emt 0:00:02]} a6 {[%emt 0:00:12]} 6. Ne5 {[%emt 0:
00:04]} Nbd7 {[%emt 0:00:30]} 7. Qb3 {[%emt 0:00:17]} Qc7 {[%emt 0:00:36]} 8.
cxd5 {[%emt 0:00:13]} Nxe5 {[%emt 0:00:28]} 9. dxe5 {[%emt 0:00:06]} Nxd5 {
[%emt 0:00:07]} 10. Nxd5 {[%emt 0:00:04]} cxd5 {[%emt 0:00:10]} 11. Bd2 {
[%emt 0:00:02]} Qxe5 {[%emt 0:01:29]} 12. Be2 {[%emt 0:03:50]} Qd6 {[%emt 0:09:
29]} 13. O-O {[%emt 0:18:50]} e5 {[%emt 0:06:51]} 14. f4 {[%emt 0:19:17]} Be7 {
[%emt 0:11:44]} 15. fxe5 {[%emt 0:17:00]} Qd7 {[%emt 0:12:31]} 16. Rxf5 {
[%emt 0:00:11]} Qxf5 {[%emt 0:00:38]} 17. Qxb7 {[%emt 0:00:08]} Qc8 {[%emt 0:
11:29]} 18. Bxa6 {[%emt 0:01:14]} Qxb7 {[%emt 0:02:34]} 19. Bxb7 {[%emt 0:00:
07]} Rb8 {[%emt 0:01:05]} 20. Bc6+ {[%emt 0:00:06]} Kf8 {[%emt 0:01:51]} 21.
Bc3 {[%emt 0:02:12]} Bc5 {[%emt 0:03:54]} 22. Kf2 {[%emt 0:00:06]} Ke7 {
[%emt 0:01:57]} 23. Bxd5 {[%emt 0:01:47]} Rhd8 {[%emt 0:05:52]} 24. Bc4 {
[%emt 0:00:13]} Rdc8 {[%emt 0:01:10]} 25. b3 {[%emt 0:01:21]} Ba3 {[%emt 0:07:
19]} 26. Ke2 {[%emt 0:02:20]} Rc7 {[%emt 0:01:58]} 27. Rf1 {[%emt 0:00:10]} Ke8
{[%emt 0:00:55]} 28. e6 {[%emt 0:04:25]} f6 {[%emt 0:01:52]} 29. g4 {[%emt 0:
01:25]} Rc5 {[%emt 0:03:27]} 30. h4 {[%emt 0:02:42]} h6 {[%emt 0:01:32]} 31.
Kd3 {[%emt 0:03:41]} Ke7 {[%emt 0:00:58]} 32. Bd4 {[%emt 0:01:11]} Ra5 {
[%emt 0:00:45]} 33. Ke4 {[%emt 0:00:11]} Kd6 {[%emt 0:04:29]} 34. Rd1 {[%emt 0:
00:49]} Ke7 {[%emt 0:00:41]} 35. Bc3 {[%emt 0:01:33]} Ra7 {[%emt 0:00:15]} 36.
Rd5 {[%emt 0:00:43]} Rc8 {[%emt 0:06:58]} 37. Bd4 {[%emt 0:01:24]} Rac7 {
[%emt 0:01:31]} 38. Kf5 {[%emt 0:16:07]} Bd6 {[%emt 0:00:40]} 39. g5 {[%emt 0:
00:00]} hxg5 {[%emt 0:00:12]} 40. hxg5 {[%emt 0:00:00]} g6+ {[%emt 0:00:00]}
41. Ke4 {[%emt 0:00:00]} f5+ {[%emt 0:03:31]} 42. Kd3 {[%emt 0:00:00]} Rc6 {
[%emt 0:10:31]} 43. Bf6+ {[%emt 0:00:00]} Kxe6 {[%emt 0:00:41]} 44. Ra5+ {
[%emt 0:00:08]} Rxc4 {[%emt 0:01:12]} 45. bxc4 {[%emt 0:00:07]} f4 {[%emt 0:01:
53]} 46. exf4 {[%emt 0:00:49]} Bxf4 {[%emt 0:00:03]} 47. a4 {[%emt 0:00:36]}
Rc7 {[%emt 0:01:20]} 48. Kd4 {[%emt 0:01:21]} Rc6 {[%emt 0:00:59]} 49. c5 {
[%emt 0:00:29]} Bh2 {[%emt 0:02:32]} 50. Kc4 {[%emt 0:00:38]} Bg1 {[%emt 0:01:
04]} 51. Rb5 {[%emt 0:01:10]} Kf5 {[%emt 0:01:39]} 52. Kd5 {[%emt 0:00:33]} Ra6
{[%emt 0:01:29]} 53. c6 {[%emt 0:02:51]} Bh2 {[%emt 0:00:30]} 54. a5 {[%emt 0:
02:06]} Bc7 {[%emt 0:00:15]} 55. Bc3 {[%emt 0:00:22]} Kxg5 {[%emt 0:00:29]} 56.
Ke6+ {[%emt 0:00:24]} Kf4 {[%emt 0:00:24]} 57. Kd7 {[%emt 0:00:29]} Ra7 {
[%emt 0:00:15]} 58. Rb7 {[%emt 0:00:12]} Rxb7 {[%emt 0:01:23]} 59. cxb7 {
[%emt 0:00:09]} Bb8 {[%emt 0:00:02]} 60. Kc8 {[%emt 0:00:42]} 1-0

[Event "36th European Club Cup 2021"]
[Site "Struga"]
[Date "2021.09.23"]
[Round "6.41"]
[White "Ranaldi, Lucas"]
[Black "Visintin, Roberto"]
[Result "1-0"]
[ECO "A13"]
[WhiteElo "2325"]
[BlackElo "2029"]
[Annotator "NA"]
[PlyCount "81"]
[EventDate "2021.09.18"]
[EventType "team-tourn"]
[EventCountry "MKD"]
[SourceTitle "playchess.com"]
[Source "ChessBase"]
[SourceQuality "1"]
[TimeControl "40/5400+30:1800+30"]

1. Nf3 {[%emt 0:00:04]} e6 {[%emt 0:00:12]} 2. c4 {[%emt 0:00:42]} d5 {[%emt 0:
00:15]} 3. g3 {[%emt 0:02:28]} dxc4 {[%emt 0:00:56]} 4. Qa4+ {[%emt 0:00:15]}
Nd7 {[%emt 0:00:44]} 5. Qxc4 {[%emt 0:01:28]} a6 {[%emt 0:01:04]} 6. Bg2 {
[%emt 0:00:43]} b5 {[%emt 0:03:22]} 7. Qb3 {[%emt 0:03:01]} Bb7 {[%emt 0:01:38]
} 8. O-O {[%emt 0:00:30]} Ngf6 {[%emt 0:00:57]} 9. Nc3 {[%emt 0:06:37]} Be7 {
[%emt 0:02:28]} 10. d3 {[%emt 0:02:08]} O-O {[%emt 0:03:17]} 11. a4 {[%emt 0:
01:53]} Nc5 {[%emt 0:10:03]} 12. Qc2 {[%emt 0:01:52]} b4 {[%emt 0:00:56]} 13.
Nb1 {[%emt 0:00:26]} Rb8 {[%emt 0:16:49]} 14. Be3 {[%emt 0:17:23]} Ncd7 {
[%emt 0:05:15]} 15. Nd4 {[%emt 0:03:11]} c5 {[%emt 0:06:29]} 16. Nc6 {[%emt 0:
00:34]} Bxc6 {[%emt 0:00:13]} 17. Bxc6 {[%emt 0:00:07]} Nd5 {[%emt 0:03:22]}
18. Bxd7 {[%emt 0:00:41]} Qxd7 {[%emt 0:08:21]} 19. Nd2 {[%emt 0:02:01]} Rfc8 {
[%emt 0:07:03]} 20. Nb3 {[%emt 0:06:08]} Qa7 {[%emt 0:05:32]} 21. Qc4 {[%emt 0:
02:32]} Nb6 {[%emt 0:02:20]} 22. Qe4 {[%emt 0:02:06]} Nd5 {[%emt 0:01:03]} 23.
Rfc1 {[%emt 0:03:10]} Nxe3 {[%emt 0:01:55]} 24. Qxe3 {[%emt 0:01:35]} Rc7 {
[%emt 0:18:16]} 25. Rc4 {[%emt 0:03:48]} Rbc8 {[%emt 0:00:00]} 26. Rac1 {
[%emt 0:01:02]} h6 {[%emt 0:00:00]} 27. h4 {[%emt 0:01:39]} Qb6 {[%emt 0:00:00]
} 28. Qf3 {[%emt 0:14:17]} Qd6 {[%emt 0:00:00]} 29. Nd2 {[%emt 0:01:51]} Qd5 {
[%emt 0:00:00]} 30. b3 {[%emt 0:01:39]} Bf6 {[%emt 0:00:00]} 31. Ne4 {[%emt 0:
02:24]} Be7 {[%emt 0:00:00]} 32. Kg2 {[%emt 0:10:19]} Rc6 {[%emt 0:00:00]} 33.
d4 {[%emt 0:01:02]} Kf8 {[%emt 0:02:56]} 34. Nxc5 {[%emt 0:00:40]} Bxc5 {
[%emt 0:00:56]} 35. Qxd5 {[%emt 0:01:01]} exd5 {[%emt 0:00:03]} 36. Rxc5 {
[%emt 0:00:10]} Rxc5 {[%emt 0:00:35]} 37. Rxc5 {[%emt 0:00:36]} Rd8 {[%emt 0:
00:36]} 38. Rc6 {[%emt 0:00:13]} Ra8 {[%emt 0:00:35]} 39. Rb6 {[%emt 0:00:48]}
Ke7 {[%emt 0:01:12]} 40. Rxb4 {[%emt 0:00:00]} Rc8 {[%emt 0:00:00]} 41. Rb7+ {
[%emt 0:00:48]} 1-0

[Event "36th European Club Cup 2021"]
[Site "Struga"]
[Date "2021.09.23"]
[Round "6.42"]
[White "Stern, Geoffrey"]
[Black "Hagen, Anders Gjerdrum"]
[Result "0-1"]
[ECO "D00"]
[WhiteElo "1948"]
[BlackElo "2179"]
[Annotator "NA"]
[PlyCount "82"]
[EventDate "2021.09.18"]
[EventType "team-tourn"]
[EventCountry "MKD"]
[SourceTitle "playchess.com"]
[Source "ChessBase"]
[SourceQuality "1"]
[TimeControl "40/5400+30:1800+30"]

1. d4 {[%emt 0:00:03]} Nf6 {[%emt 0:00:10]} 2. Nc3 {[%emt 0:00:10]} d5 {
[%emt 0:00:20]} 3. Bf4 {[%emt 0:00:14]} a6 {[%emt 0:00:41]} 4. e3 {[%emt 0:00:
25]} e6 {[%emt 0:00:52]} 5. g4 {[%emt 0:00:51]} Bd6 {[%emt 0:24:14]} 6. g5 {
[%emt 0:01:14]} Ng8 {[%emt 0:04:17]} 7. Nf3 {[%emt 0:12:52]} Ne7 {[%emt 0:06:
43]} 8. h4 {[%emt 0:08:35]} Bxf4 {[%emt 0:15:28]} 9. exf4 {[%emt 0:00:17]} c5 {
[%emt 0:00:27]} 10. Bh3 {[%emt 0:06:09]} Nbc6 {[%emt 0:06:43]} 11. Qd2 {
[%emt 0:10:51]} cxd4 {[%emt 0:11:06]} 12. Nxd4 {[%emt 0:00:23]} Qb6 {[%emt 0:
00:13]} 13. O-O-O {[%emt 0:08:37]} Nxd4 {[%emt 0:02:14]} 14. Qxd4 {[%emt 0:00:
08]} Qxd4 {[%emt 0:00:22]} 15. Rxd4 {[%emt 0:00:02]} h6 {[%emt 0:00:44]} 16.
Bg2 {[%emt 0:24:52]} Bd7 {[%emt 0:02:29]} 17. Ne2 {[%emt 0:03:24]} Rc8 {
[%emt 0:06:44]} 18. Ng3 {[%emt 0:03:51]} Nc6 {[%emt 0:03:07]} 19. Rd2 {[%emt 0:
00:47]} Ne7 {[%emt 0:01:03]} 20. Re1 {[%emt 0:04:51]} g6 {[%emt 0:04:47]} 21.
b3 {[%emt 0:01:47]} Kf8 {[%emt 0:01:01]} 22. Kb2 {[%emt 0:01:08]} hxg5 {
[%emt 0:00:42]} 23. hxg5 {[%emt 0:00:25]} Rh4 {[%emt 0:00:33]} 24. Ne2 {
[%emt 0:04:19]} Bb5 {[%emt 0:01:11]} 25. Rh1 {[%emt 0:00:54]} Rxh1 {[%emt 0:03:
19]} 26. Bxh1 {[%emt 0:00:01]} Bxe2 {[%emt 0:00:27]} 27. Rxe2 {[%emt 0:00:01]}
b5 {[%emt 0:00:29]} 28. c3 {[%emt 0:02:05]} Nf5 {[%emt 0:00:59]} 29. a3 {
[%emt 0:01:45]} Kg7 {[%emt 0:00:27]} 30. Bf3 {[%emt 0:01:56]} Rh8 {[%emt 0:00:
42]} 31. Bg4 {[%emt 0:00:58]} Nd6 {[%emt 0:02:04]} 32. Kc2 {[%emt 0:01:17]} a5
{[%emt 0:00:37]} 33. Kd3 {[%emt 0:00:29]} Rc8 {[%emt 0:00:59]} 34. Rc2 {
[%emt 0:00:42]} a4 {[%emt 0:00:42]} 35. Rb2 {[%emt 0:00:54]} Ne4 {[%emt 0:00:
26]} 36. bxa4 {[%emt 0:00:37]} Rxc3+ {[%emt 0:00:22]} 37. Ke2 {[%emt 0:00:33]}
bxa4 {[%emt 0:00:18]} 38. f3 {[%emt 0:00:17]} Nd6 {[%emt 0:00:43]} 39. Rb6 {
[%emt 0:00:30]} Nc4 {[%emt 0:00:21]} 40. Rb7 {[%emt 0:00:00]} Rxa3 {[%emt 0:00:
00]} 41. Ke1 {[%emt 0:02:08]} Rb3 {[%emt 0:02:42]} 0-1

[Event "36th European Club Cup 2021"]
[Site "Struga"]
[Date "2021.09.23"]
[Round "6.43"]
[White "Heimann, Andreas"]
[Black "Westerberg, Jonathan"]
[Result "1-0"]
[ECO "B60"]
[WhiteElo "2587"]
[BlackElo "2526"]
[Annotator "ChessBase"]
[PlyCount "63"]
[EventDate "2021.09.18"]
[EventType "team-tourn"]
[EventCountry "MKD"]
[SourceTitle "playchess.com"]
[Source "ChessBase"]
[SourceQuality "1"]
[TimeControl "40/5400+30:1800+30"]

1. e4 {[%emt 0:00:19]} c5 {[%emt 0:01:40]} 2. Nf3 {[%emt 0:00:06]} Nc6 {
[%emt 0:01:07]} 3. d4 {[%emt 0:00:51]} cxd4 {[%emt 0:00:22]} 4. Nxd4 {[%emt 0:
00:05]} Nf6 {[%emt 0:01:26]} 5. Nc3 {[%emt 0:00:05]} d6 {[%emt 0:03:26]} 6. Bg5
{[%emt 0:00:58]} g6 {[%emt 0:00:40]} 7. Bxf6 {[%emt 0:01:57]} exf6 {[%emt 0:02:
43]} 8. Bb5 {[%emt 0:00:09]} Bd7 {[%emt 0:04:06]} 9. Qd2 {[%emt 0:02:21]} Bg7 {
[%emt 0:07:00]} 10. O-O-O {[%emt 0:05:17]} O-O {[%emt 0:03:26]} 11. Nxc6 {
[%emt 0:12:43]} Bxc6 {[%emt 0:01:01]} 12. Bxc6 {[%emt 1:11:39]} bxc6 {[%emt 0:
00:08]} 13. Qxd6 {[%emt 0:00:00]} Qa5 {[%emt 0:03:34]} 14. Qxc6 {[%emt 0:00:00]
} Qg5+ {[%emt 0:20:44]} 15. Kb1 {[%emt 0:00:00]} Rfc8 {[%emt 0:01:03]} 16. Qd5
{[%emt 0:00:00]} Qxg2 {[%emt 0:06:04]} 17. Qd4 {[%emt 0:00:00]} f5 {[%emt 0:04:
29]} 18. e5 {[%emt 0:00:00]} Qc6 {[%emt 0:02:08]} 19. Rhe1 {[%emt 0:00:00]}
Rab8 {[%emt 0:00:44]} 20. Rd3 {[%emt 0:00:00]} Bf8 {[%emt 0:08:09]} 21. Re2 {
[%emt 0:00:00]} Rb4 {[%emt 0:02:19]} 22. Qd5 {[%emt 0:00:00]} Qb6 {[%emt 0:00:
01]} 23. b3 {[%emt 0:00:00]} Rbc4 {[%emt 0:08:30]} 24. e6 {[%emt 0:00:00]} Rxc3
{[%emt 0:00:52]} 25. Rxc3 {[%emt 0:00:00]} Rxc3 {[%emt 0:00:02]} 26. e7 {
[%emt 0:00:00]} Bxe7 {[%emt 0:00:38]} 27. Rxe7 {[%emt 0:00:00]} Qf6 {[%emt 0:
00:17]} 28. Rxa7 {[%emt 0:00:00]} Rh3 {[%emt 0:01:52]} 29. Ra8+ {[%emt 0:00:00]
} Kg7 {[%emt 0:00:04]} 30. Qd8 {[%emt 0:00:00]} Qe6 {[%emt 0:06:45]} 31. Qf8+ {
[%emt 0:00:00]} Kf6 {[%emt 0:00:04]} 32. f4 {[%emt 0:00:00]} 1-0

[Event "36th European Club Cup 2021"]
[Site "Struga"]
[Date "2021.09.23"]
[Round "6.44"]
[White "Seo, Jung Min"]
[Black "Cvitan, Ognjen"]
[Result "1/2-1/2"]
[ECO "D38"]
[WhiteElo "2469"]
[BlackElo "2470"]
[Annotator "ChessBase"]
[PlyCount "67"]
[EventDate "2021.09.18"]
[EventType "team-tourn"]
[EventCountry "MKD"]
[SourceTitle "playchess.com"]
[Source "ChessBase"]
[SourceQuality "1"]
[TimeControl "40/5400+30:1800+30"]

1. d4 {[%emt 0:00:01]} Nf6 {[%emt 0:01:31]} 2. c4 {[%emt 0:00:03]} e6 {[%emt 0:
00:38]} 3. Nf3 {[%emt 0:00:03]} d5 {[%emt 0:01:43]} 4. Nc3 {[%emt 0:00:21]} Bb4
{[%emt 0:01:46]} 5. Bg5 {[%emt 0:01:03]} h6 {[%emt 0:01:34]} 6. Bxf6 {[%emt 0:
00:38]} Qxf6 {[%emt 0:01:18]} 7. Qa4+ {[%emt 0:01:30]} Nc6 {[%emt 0:01:18]} 8.
e3 {[%emt 0:00:35]} O-O {[%emt 0:01:36]} 9. Rc1 {[%emt 0:01:02]} Rd8 {[%emt 0:
02:49]} 10. Be2 {[%emt 0:05:02]} dxc4 {[%emt 0:02:49]} 11. Bxc4 {[%emt 0:00:32]
} Bd7 {[%emt 0:02:08]} 12. Qc2 {[%emt 0:00:21]} Na5 {[%emt 0:02:25]} 13. Be2 {
[%emt 0:01:54]} c5 {[%emt 0:00:06]} 14. a3 {[%emt 0:00:29]} cxd4 {[%emt 0:00:
17]} 15. axb4 {[%emt 0:00:33]} dxc3 {[%emt 0:00:15]} 16. bxc3 {[%emt 0:07:43]}
Nc6 {[%emt 0:00:55]} 17. O-O {[%emt 0:00:09]} a6 {[%emt 0:12:12]} 18. Rfd1 {
[%emt 0:03:01]} e5 {[%emt 0:03:11]} 19. Nd2 {[%emt 0:03:04]} Bf5 {[%emt 0:01:
13]} 20. e4 {[%emt 0:00:36]} Be6 {[%emt 0:00:20]} 21. Nc4 {[%emt 0:07:51]} Rac8
{[%emt 0:07:00]} 22. Rxd8+ {[%emt 0:02:28]} Qxd8 {[%emt 0:01:08]} 23. Qb2 {
[%emt 0:00:33]} Qc7 {[%emt 0:02:11]} 24. Rc2 {[%emt 0:02:26]} a5 {[%emt 0:00:
48]} 25. bxa5 {[%emt 0:01:17]} Nxa5 {[%emt 0:00:09]} 26. Nxa5 {[%emt 0:00:56]}
Qxa5 {[%emt 0:00:10]} 27. Rc1 {[%emt 0:00:13]} b6 {[%emt 0:01:51]} 28. h3 {
[%emt 0:00:46]} Qc5 {[%emt 0:01:46]} 29. Bf1 {[%emt 0:00:55]} Rc6 {[%emt 0:04:
18]} 30. Rc2 {[%emt 0:01:18]} Rc8 {[%emt 0:02:02]} 31. Rc1 {[%emt 0:00:04]} Ra8
{[%emt 0:01:24]} 32. Rb1 {[%emt 0:02:05]} Ra2 {[%emt 0:01:51]} 33. Qxb6 {
[%emt 0:00:22]} Qxc3 {[%emt 0:00:05]} 34. Qb4 {[%emt 0:01:57]} 1/2-1/2

[Event "36th European Club Cup 2021"]
[Site "Struga"]
[Date "2021.09.23"]
[Round "6.45"]
[White "Breder, Dennis"]
[Black "Lokander, Martin"]
[Result "1/2-1/2"]
[ECO "B31"]
[WhiteElo "2463"]
[BlackElo "2452"]
[Annotator "ChessBase"]
[PlyCount "160"]
[EventDate "2021.09.18"]
[EventType "team-tourn"]
[EventCountry "MKD"]
[SourceTitle "playchess.com"]
[Source "ChessBase"]
[SourceQuality "1"]
[TimeControl "40/5400+30:1800+30"]

1. e4 {[%emt 0:00:03]} c5 {[%emt 0:00:33]} 2. Nf3 {[%emt 0:00:06]} Nc6 {
[%emt 0:00:08]} 3. Bb5 {[%emt 0:00:05]} g6 {[%emt 0:00:13]} 4. O-O {[%emt 0:00:
05]} Bg7 {[%emt 0:00:17]} 5. d3 {[%emt 0:00:03]} e5 {[%emt 0:00:58]} 6. Bxc6 {
[%emt 0:00:05]} bxc6 {[%emt 0:01:57]} 7. c3 {[%emt 0:00:07]} Ne7 {[%emt 0:04:
37]} 8. Be3 {[%emt 0:00:12]} d6 {[%emt 0:00:47]} 9. d4 {[%emt 0:00:03]} cxd4 {
[%emt 0:08:31]} 10. cxd4 {[%emt 0:00:08]} Bg4 {[%emt 0:00:35]} 11. dxe5 {
[%emt 0:34:24]} Bxe5 {[%emt 0:15:00]} 12. Nc3 {[%emt 0:05:15]} f5 {[%emt 0:10:
55]} 13. Bd4 {[%emt 0:06:23]} Bxf3 {[%emt 0:20:23]} 14. gxf3 {[%emt 0:00:06]}
Bxd4 {[%emt 0:04:37]} 15. Qxd4 {[%emt 0:00:03]} O-O {[%emt 0:00:48]} 16. Rad1 {
[%emt 0:00:49]} fxe4 {[%emt 0:01:02]} 17. fxe4 {[%emt 0:01:03]} d5 {[%emt 0:01:
38]} 18. exd5 {[%emt 0:02:37]} Nxd5 {[%emt 0:02:18]} 19. Nxd5 {[%emt 0:02:25]}
Qg5+ {[%emt 0:00:30]} 20. Kh1 {[%emt 0:00:01]} cxd5 {[%emt 0:00:18]} 21. Qxd5+
{[%emt 0:00:16]} Qxd5+ {[%emt 0:00:08]} 22. Rxd5 {[%emt 0:00:02]} Rab8 {
[%emt 0:01:02]} 23. Rd2 {[%emt 0:00:33]} Rb5 24. Rc1 {[%emt 0:02:18]} Rf7 {
[%emt 0:03:36]} 25. Rc3 {[%emt 0:01:27]} Kg7 {[%emt 0:03:36]} 26. Rcd3 {
[%emt 0:02:13]} Rbf5 {[%emt 0:01:48]} 27. Kg2 {[%emt 0:00:07]} Kh6 {[%emt 0:01:
46]} 28. b3 {[%emt 0:04:48]} Rg5+ {[%emt 0:01:46]} 29. Kf1 {[%emt 0:00:57]}
Rgf5 {[%emt 0:00:51]} 30. h3 {[%emt 0:04:12]} Rf4 {[%emt 0:02:27]} 31. Kg2 {
[%emt 0:05:26]} R4f5 {[%emt 0:00:27]} 32. Rd5 {[%emt 0:00:07]} Rf4 {[%emt 0:01:
08]} 33. Ra5 {[%emt 0:01:43]} Kg7 {[%emt 0:01:46]} 34. a3 {[%emt 0:04:02]} Kh6
{[%emt 0:02:18]} 35. b4 {[%emt 0:00:07]} Kg7 {[%emt 0:02:24]} 36. Rc2 {[%emt 0:
02:59]} Kh6 {[%emt 0:00:33]} 37. Rac5 {[%emt 0:00:06]} Rf3 {[%emt 0:00:55]} 38.
R5c3 {[%emt 0:01:00]} R3f5 {[%emt 0:00:26]} 39. a4 {[%emt 0:00:19]} Rg5+ {
[%emt 0:01:04]} 40. Rg3 {[%emt 0:00:00]} Rgf5 {[%emt 0:00:00]} 41. Rg4 {
[%emt 0:00:53]} Kg7 {[%emt 0:02:51]} 42. Rgc4 {[%emt 0:03:28]} Kh6 {[%emt 0:01:
14]} 43. b5 {[%emt 0:06:56]} Rg5+ {[%emt 0:00:50]} 44. Kf1 {[%emt 0:00:21]}
Rgf5 {[%emt 0:02:40]} 45. Rc8 {[%emt 0:13:48]} Rf4 {[%emt 0:03:21]} 46. R8c4 {
[%emt 0:00:38]} R4f5 {[%emt 0:00:01]} 47. Rb2 {[%emt 0:05:40]} Rh5 {[%emt 0:01:
40]} 48. Kg2 {[%emt 0:02:49]} Rg5+ {[%emt 0:03:48]} 49. Rg4 {[%emt 0:00:39]}
Rgf5 {[%emt 0:00:24]} 50. Rh4+ {[%emt 0:03:31]} Kg5 {[%emt 0:00:21]} 51. Rc4 {
[%emt 0:02:15]} Kh6 {[%emt 0:00:07]} 52. a5 {[%emt 0:04:28]} Rb7 {[%emt 0:01:
39]} 53. a6 {[%emt 0:01:17]} Rbxb5 {[%emt 0:03:24]} 54. Rxb5 {[%emt 0:00:08]}
Rxb5 {[%emt 0:00:06]} 55. Rc7 {[%emt 0:00:03]} Ra5 {[%emt 0:01:47]} 56. Rxa7 {
[%emt 0:00:06]} g5 {[%emt 0:00:37]} 57. Kf3 {[%emt 0:02:06]} Ra4 {[%emt 0:05:
26]} 58. Ke3 {[%emt 0:01:43]} Kg6 {[%emt 0:02:10]} 59. Kd3 {[%emt 0:02:54]} Kf5
{[%emt 0:03:05]} 60. Kc3 {[%emt 0:00:31]} Ke4 {[%emt 0:01:49]} 61. Kb3 {
[%emt 0:01:07]} Ra1 {[%emt 0:00:03]} 62. Kb4 {[%emt 0:01:44]} h5 {[%emt 0:01:
11]} 63. Kb5 {[%emt 0:00:26]} Rb1+ {[%emt 0:00:17]} 64. Kc6 {[%emt 0:00:29]}
Rc1+ {[%emt 0:00:10]} 65. Kb6 {[%emt 0:01:42]} Rb1+ {[%emt 0:00:12]} 66. Kc7 {
[%emt 0:04:53]} Kf3 {[%emt 0:01:12]} 67. Ra8 {[%emt 0:01:14]} Ra1 {[%emt 0:01:
22]} 68. Kb7 {[%emt 0:01:06]} Rb1+ {[%emt 0:00:31]} 69. Kc6 {[%emt 0:00:07]}
Rc1+ {[%emt 0:01:24]} 70. Kd5 {[%emt 0:00:35]} Ra1 {[%emt 0:00:58]} 71. a7 {
[%emt 0:00:03]} Kg2 {[%emt 0:00:42]} 72. f4 {[%emt 0:00:15]} Ra5+ {[%emt 0:02:
53]} 73. Ke4 {[%emt 0:00:42]} Ra4+ {[%emt 0:01:19]} 74. Kd3 {[%emt 0:00:47]}
Ra3+ {[%emt 0:01:38]} 75. Kc2 {[%emt 0:00:01]} g4 {[%emt 0:01:26]} 76. hxg4 {
[%emt 0:00:16]} h4 {[%emt 0:00:11]} 77. Rh8 {[%emt 0:01:58]} Rxa7 {[%emt 0:00:
45]} 78. Rxh4 {[%emt 0:00:25]} Kg3 {[%emt 0:00:09]} 79. Rh6 {[%emt 0:00:12]}
Kxf4 {[%emt 0:00:08]} 80. g5 {[%emt 0:00:05]} Kxg5 {[%emt 0:00:04]} 1/2-1/2

[Event "36th European Club Cup 2021"]
[Site "Struga"]
[Date "2021.09.23"]
[Round "6.46"]
[White "Ertan, Can"]
[Black "Brunner, Nicolas"]
[Result "1-0"]
[ECO "B51"]
[WhiteElo "2384"]
[BlackElo "2425"]
[Annotator "NA"]
[PlyCount "51"]
[EventDate "2021.09.18"]
[EventType "team-tourn"]
[EventCountry "MKD"]
[SourceTitle "playchess.com"]
[Source "ChessBase"]
[SourceQuality "1"]
[TimeControl "40/5400+30:1800+30"]

1. e4 {[%emt 0:00:02]} c5 {[%emt 0:00:05]} 2. Nf3 {[%emt 0:00:02]} d6 {[%emt 0:
00:05]} 3. Bb5+ {[%emt 0:00:03]} Nd7 {[%emt 0:00:25]} 4. O-O {[%emt 0:00:05]}
a6 {[%emt 0:00:14]} 5. Bd3 {[%emt 0:00:02]} Ngf6 {[%emt 0:01:04]} 6. c3 {
[%emt 0:00:04]} b5 {[%emt 0:01:06]} 7. Bc2 {[%emt 0:00:04]} Bb7 {[%emt 0:01:11]
} 8. Re1 {[%emt 0:00:03]} c4 {[%emt 0:03:33]} 9. a4 {[%emt 0:00:02]} e6 {
[%emt 0:02:21]} 10. d4 {[%emt 0:00:29]} cxd3 {[%emt 0:00:08]} 11. Bxd3 {
[%emt 0:00:06]} bxa4 {[%emt 0:01:49]} 12. Qxa4 {[%emt 0:08:57]} Be7 {[%emt 0:
00:55]} 13. h3 {[%emt 0:00:14]} O-O {[%emt 0:00:30]} 14. Be3 {[%emt 0:00:15]}
Qc7 {[%emt 0:03:34]} 15. Nbd2 {[%emt 0:03:41]} d5 {[%emt 0:10:45]} 16. e5 {
[%emt 0:04:55]} Ne8 {[%emt 0:15:53]} 17. Nb3 {[%emt 0:00:08]} Nxe5 {[%emt 0:07:
40]} 18. Nxe5 {[%emt 0:00:11]} Qxe5 {[%emt 0:00:04]} 19. Bf4 {[%emt 0:00:05]}
Qf6 {[%emt 0:00:50]} 20. Be5 {[%emt 0:00:08]} Qg5 {[%emt 0:16:22]} 21. Qd7 {
[%emt 0:00:10]} Ra7 {[%emt 0:07:51]} 22. Bd4 {[%emt 0:00:55]} Nd6 {[%emt 0:25:
05]} 23. Re5 {[%emt 0:03:18]} f5 {[%emt 0:00:00]} 24. Qxe6+ {[%emt 0:00:33]}
Rf7 {[%emt 0:00:00]} 25. Bxa7 {[%emt 0:08:08]} Bc8 {[%emt 0:00:00]} 26. Be3 {
[%emt 0:00:05]} 1-0